bitfinex/quotes_SOLUSD_20260302
["timestamp","ask_amount","ask_price","bid_price","bid_amount"]
[1772415977523,11.79586231,84.776,84.741,2.2673536]
[1772415977905,8.73099376,84.77,84.741,2.2673536]
[1772415979605,8.73099376,84.78,84.751,2.2673536]
[1772415979818,20.52622848,84.78,84.751,2.2673536]
[1772415981426,9.85518674,84.813,84.771,2.2673536]
[1772415981427,11.79078432,84.812,84.771,2.2673536]
[1772415981723,8.73099376,84.81,84.773,2.2673536]
[1772415982014,8.73099376,84.8,84.773,2.2673536]
[1772415982813,8.73099376,84.8,84.767,11.79693555]
[1772415982999,8.73099376,84.8,84.754,2.2673536]
[1772415983000,8.73099376,84.78,84.754,2.2673536]
[1772415983824,8.73099376,84.77,84.746,2.2673536]
[1772415984109,0.28432314,84.789,84.751,2.2673536]
[1772415984309,12.07830585,84.789,84.751,2.2673536]
[1772415985507,11.79398271,84.789,84.751,2.2673536]
[1772415986924,8.73099376,84.78,84.753,2.2673536]
[1772415989110,11.79537385,84.779,84.753,2.2673536]
[1772415990018,8.73099376,84.79,84.755,2.2673536]
[1772415990212,58.94544871,84.825,84.761,2.2673536]
[1772415990213,11.79243686,84.801,84.761,2.2673536]
[1772415990528,8.73099376,84.8,84.771,2.2673536]
[1772415990822,8.73099376,84.79,84.762,2.2673536]
[1772415991638,11.79398271,84.789,84.761,11.79782809]
[1772415991816,8.73099376,84.77,84.731,2.2673536]
[1772415992016,8.73099376,84.76,84.731,2.2673536]
[1772415992927,8.73099376,84.75,84.731,2.2673536]
[1772415993825,11.79954925,84.749,84.723,2.2673536]
[1772415995022,8.73099376,84.75,84.723,2.2673536]
[1772415995222,8.73099376,84.77,84.731,2.2673536]
[1772415995522,11.79676532,84.769,84.731,2.2673536]
[1772415996236,8.73099376,84.77,84.733,2.2673536]
[1772415996532,8.73099376,84.77,84.732,41.3067082]
[1772415996533,8.73099376,84.77,84.741,2.2673536]
[1772415996830,11.79538279,84.779,84.741,2.2673536]
[1772415997620,28.47718062,84.938,84.771,2.2673536]
[1772415997621,58.94460241,84.826,84.771,2.2673536]
[1772415998027,8.73099376,84.79,84.751,2.2673536]
[1772415998537,11.79398271,84.789,84.753,2.2673536]
[1772415999153,11.79327826,84.795,84.76,8.73099376]
[1772415999451,8.73099376,84.82,84.781,2.2673536]
[1772415999654,8.73099376,84.8,84.781,2.2673536]
[1772416000021,8.73099376,84.8,84.76,8.73099376]
[1772416000226,8.73099376,84.8,84.761,2.2673536]
[1772416000527,11.93197281,84.819,84.783,2.2673536]
[1772416001137,8.72324955,84.81,84.783,2.2673536]
[1772416003846,8.72324955,84.82,84.785,2.2673536]
[1772416004048,8.72324955,84.83,84.791,2.2673536]
[1772416004248,11.78758767,84.835,84.801,2.2673536]
[1772416004628,3.69383402,84.863,84.784,11.79467824]
[1772416004629,8.72324955,84.85,84.811,2.2673536]
[1772416004829,8.72324955,84.83,84.795,2.2673536]
[1772416005937,20.51162514,84.83,84.796,11.7930091]
[1772416006141,20.51162514,84.83,84.797,2.2673536]
[1772416007047,11.78837559,84.83,84.801,2.2673536]
[1772416007439,20.51162514,84.83,84.801,2.2673536]
[1772416009953,12.07135504,84.839,84.803,2.2673536]
[1772416011041,8.72324955,84.85,84.811,2.2673536]
[1772416011237,11.78480938,84.855,84.821,2.2673536]
[1772416011553,8.72324955,84.85,84.821,2.2673536]
[1772416012543,8.72324955,84.84,84.821,2.2673536]
[1772416013556,11.7870319,84.839,84.809,11.79106495]
[1772416013763,8.72324955,84.83,84.799,11.79258195]
[1772416014267,2.10875747,84.838,84.8,8.72324955]
[1772416014839,11.7870319,84.839,84.801,11.79231376]
[1772416015550,11.7870319,84.839,84.802,2.1767275]
[1772416015958,8.72324955,84.84,84.811,2.1767275]
[1772416017267,8.72324955,84.83,84.799,2.1767275]
[1772416017557,10.83200702,84.83,84.801,2.1767275]
[1772416017761,8.72324955,84.83,84.801,2.1767275]
[1772416018558,0.28432314,84.849,84.811,2.1767275]
[1772416018857,2.39308061,84.849,84.811,2.1767275]
[1772416019454,2.10875747,84.849,84.811,2.1767275]
[1772416020255,58.90427382,84.884,84.821,2.1767275]
[1772416020256,3.66164611,84.86,84.821,2.1767275]
[1772416020454,8.9103928,84.88,84.843,2.1767275]
[1772416020656,8.9103928,84.9,84.861,2.1767275]
[1772416021040,8.9103928,84.9,84.871,2.1767275]
[1772416021041,0.2,84.9,84.871,2.1767275]
[1772416021239,64.87877181,84.899,84.871,2.1767275]
[1772416021550,64.87877181,84.899,84.863,2.1767275]
[1772416021551,8.7103928,84.88,84.863,2.1767275]
[1772416021752,8.7103928,84.88,84.842,41.2531529]
[1772416021949,10.81915027,84.88,84.85,8.7103928]
[1772416022150,94.32552618,84.899,84.86,8.7103928]
[1772416022151,2.10875747,84.889,84.86,8.7103928]
[1772416022369,2.10875747,84.889,84.85,8.7103928]
[1772416022549,8.7103928,84.88,84.851,11.78536493]
[1772416022744,2.10875747,84.881,84.851,11.78536493]
[1772416023138,2.10875747,84.881,84.851,41.24877726]
[1772416023370,11.78022806,84.888,84.851,41.24877726]
[1772416023663,11.78022806,84.888,84.861,2.1767275]
[1772416024366,2.10875747,84.879,84.846,11.78595888]
[1772416024544,2.10875747,84.877,84.846,13.96268638]
[1772416024944,11.78161596,84.878,84.838,2.1767275]
[1772416024945,2.10875747,84.869,84.838,2.1767275]
[1772416025346,2.10875747,84.869,84.839,11.7870319]
[1772416025547,10.81915027,84.85,84.821,2.1767275]
[1772416025741,2.10875747,84.849,84.821,2.1767275]
[1772416026744,2.10875747,84.847,84.821,2.1767275]
[1772416029251,2.10875747,84.847,84.81,8.7103928]
[1772416029252,2.10875747,84.847,84.823,2.1767275]
[1772416029447,10.81915027,84.85,84.823,2.1767275]
[1772416029652,11.78515397,84.853,84.802,2.1767275]
[1772416029653,2.10875747,84.839,84.802,2.1767275]
[1772416030370,8.7103928,84.84,84.796,11.79295691]
[1772416030371,10.81915027,84.82,84.796,11.79295691]
[1772416031871,8.7103928,84.81,84.79,11.79376298]
[1772416032573,2.10875747,84.818,84.79,11.79376298]
[1772416032969,2.22159459,84.809,84.78,10.80356557]
[1772416033170,2.22159459,84.809,84.777,11.79565212]
[1772416033371,2.22159459,84.809,84.778,2.09380488]
[1772416033570,2.22159459,84.799,84.772,13.89013773]
[1772416033771,8.7103928,84.79,84.772,13.89013773]
[1772416034250,14.01432555,84.798,84.772,13.89013773]
[1772416034453,10.93198739,84.79,84.762,2.09380488]
[1772416034664,8.7103928,84.81,84.771,2.09380488]
[1772416034854,8.7103928,84.82,84.791,2.09380488]
[1772416035062,2.22159459,84.829,84.791,2.09380488]
[1772416037978,8.7103928,84.82,84.792,2.10472597]
[1772416040177,11.78981124,84.819,84.792,2.10472597]
[1772416041183,11.78981124,84.819,84.794,2.10472597]
[1772416041478,2.26091353,84.818,84.794,2.10472597]
[1772416041682,8.7103928,84.81,84.794,2.10472597]
[1772416041861,2.26091353,84.818,84.794,2.10472597]
[1772416042885,2.26091353,84.809,84.783,2.10472597]
[1772416044984,11.79134043,84.808,84.783,2.10472597]
[1772416045293,11.79134043,84.808,84.785,2.10472597]
[1772416046471,11.79134043,84.808,84.784,11.79467824]
[1772416046472,2.26091353,84.84,84.791,2.10472597]
[1772416046668,2.26091353,84.839,84.801,2.10472597]
[1772416046871,8.7103928,84.83,84.803,2.10472597]
[1772416047067,14.04808437,84.838,84.803,2.10472597]
[1772416047268,11.7870319,84.839,84.803,2.10472597]
[1772416047799,14.04794543,84.839,84.803,2.10472597]
[1772416048086,2.26091353,84.829,84.803,2.10472597]
[1772416048469,2.26091353,84.819,84.791,2.10472597]
[1772416048663,2.26091353,84.819,84.791,13.89843049]
[1772416049084,11.78995024,84.818,84.792,2.10472597]
[1772416050083,2.26091353,84.817,84.792,2.10472597]
[1772416051392,2.26091353,84.815,84.792,2.10472597]
[1772416052274,2.26091353,84.836,84.801,2.10472597]
[1772416052573,11.78758767,84.835,84.801,2.10472597]
[1772416053191,2.26091353,84.828,84.793,11.79342634]
[1772416053385,2.26091353,84.828,84.794,2.10472597]
[1772416054080,8.7103928,84.83,84.794,2.10472597]
[1772416054271,11.78842141,84.829,84.794,2.10472597]
[1772416054470,2.26091353,84.828,84.794,2.10472597]
[1772416055278,2.26091353,84.826,84.796,2.10472597]
[1772416055773,2.26091353,84.819,84.789,2.10472597]
[1772416056678,2.26091353,84.817,84.781,13.89982156]
[1772416056885,2.26091353,84.809,84.781,2.10472597]
[1772416058094,2.26091353,84.807,84.781,2.10472597]
[1772416058475,2.26091353,84.807,84.782,11.79495647]
[1772416058788,2.26091353,84.807,84.781,2.10472597]
[1772416059287,2.26091353,84.807,84.773,13.90091812]
[1772416059495,5.92526954,84.8,84.773,13.90091812]
[1772416059793,2.26091353,84.799,84.773,13.90091812]
[1772416060289,3.66435601,84.79,84.768,11.79678548]
[1772416060594,2.26091353,84.791,84.769,2.10472597]
[1772416061197,11.79273096,84.798,84.771,2.10472597]
[1772416061392,3.66435601,84.8,84.771,2.10472597]
[1772416061892,11.79259189,84.799,84.771,2.10472597]
[1772416064080,2.26091353,84.798,84.771,2.10472597]
[1772416066095,2.26091353,84.798,84.773,2.10472597]
[1772416066593,8.72630153,84.8,84.773,2.10472597]
[1772416066801,8.72630153,84.82,84.781,2.10472597]
[1772416067377,11.78981124,84.819,84.781,2.10472597]
[1772416067698,8.72630153,84.82,84.781,2.10472597]
[1772416067906,20.5160919,84.82,84.781,2.10472597]
[1772416068082,22.69746438,84.82,84.783,2.23138396]
[1772416068286,2.18137248,84.819,84.783,2.23138396]
[1772416069186,2.18137248,84.809,84.783,2.23138396]
[1772416069393,8.72630153,84.8,84.783,2.23138396]
[1772416069795,2.18137248,84.809,84.783,2.23138396]
[1772416070189,2.18137248,84.809,84.784,11.79467824]
[1772416070385,2.18137248,84.807,84.783,2.23138396]
[1772416071995,2.18137248,84.799,84.768,11.79690449]
[1772416072195,2.18137248,84.797,84.77,11.79662616]
[1772416072403,2.18137248,84.797,84.771,2.23138396]
[1772416073594,2.18137248,84.789,84.766,11.79716627]
[1772416075299,2.18137248,84.789,84.766,2.23138396]
[1772416076905,11.7941218,84.788,84.766,2.23138396]
[1772416077290,2.18137248,84.779,84.753,11.79899236]
[1772416077486,2.18137248,84.779,84.754,2.23138396]
[1772416078207,2.18137248,84.779,84.753,11.79899236]
[1772416078409,8.72630153,84.76,84.739,2.23138396]
[1772416078609,2.18137248,84.759,84.731,11.80192238]
[1772416079308,2.18137248,84.747,84.722,14.0346936]
[1772416080305,2.18137248,84.755,84.723,2.23138396]
[1772416080511,8.72630153,84.76,84.731,2.23138396]
[1772416080512,2.18137248,84.759,84.731,2.23138396]
[1772416080897,2.18137248,84.759,84.711,38.13862141]
[1772416080898,2.18137248,84.749,84.717,2.23138396]
[1772416081106,2.18137248,84.749,84.723,2.23138396]
[1772416081307,2.18137248,84.749,84.724,11.80303101]
[1772416081494,11.79968848,84.748,84.724,14.03441497]
[1772416081696,2.18137248,84.747,84.724,14.03441497]
[1772416082093,2.18137248,84.747,84.724,2.23138396]
[1772416083721,8.72630153,84.76,84.731,2.23138396]
[1772416084105,10.90767401,84.76,84.731,2.23138396]
[1772416084331,8.72630153,84.77,84.731,2.23138396]
[1772416084513,2.18137248,84.769,84.731,2.23138396]
[1772416084702,8.72630153,84.76,84.731,2.23138396]
[1772416084903,2.18137248,84.739,84.71,0.1]
[1772416085113,2.18137248,84.739,84.711,11.80483403]
[1772416085518,2.18137248,84.737,84.711,11.80483403]
[1772416087834,2.18137248,84.729,84.71,0.1]
[1772416088716,8.72630153,84.72,84.71,0.1]
[1772416089117,10.90767401,84.72,84.71,0.1]
[1772416089505,2.18137248,84.727,84.71,0.1]
[1772416089819,2.18137248,84.739,84.711,2.23138396]
[1772416090012,0.28432314,84.748,84.71,2.33138396]
[1772416090013,8.72630153,84.73,84.71,2.33138396]
[1772416090212,10.90767401,84.73,84.71,2.33138396]
[1772416090425,8.72630153,84.73,84.71,2.33138396]
[1772416091403,2.18137248,84.729,84.71,2.33138396]
[1772416091843,13.98384627,84.728,84.71,0.1]
[1772416092207,2.18137248,84.728,84.71,0.1]
[1772416092604,13.98384627,84.728,84.71,0.1]
[1772416093239,2.04252116,84.719,84.69,0.1]
[1772416093410,8.72630153,84.72,84.69,0.1]
[1772416093411,2.04252116,84.713,84.69,0.1]
[1772416093612,2.04252116,84.709,84.69,0.1]
[1772416093825,8.72630153,84.71,84.691,2.16126592]
[1772416094008,8.72630153,84.74,84.701,2.16126592]
[1772416094209,8.63780367,84.78,84.69,0.1]
[1772416094210,2.04252116,84.748,84.711,2.16126592]
[1772416094408,8.72630153,84.74,84.711,2.16126592]
[1772416094710,2.04252116,84.748,84.711,2.16126592]
[1772416095620,13.84234888,84.747,84.713,2.16126592]
[1772416096138,2.04252116,84.746,84.713,2.16126592]
[1772416096738,8.72630153,84.72,84.691,2.16126592]
[1772416097042,2.04252116,84.729,84.691,2.16126592]
[1772416097431,2.06351816,84.709,84.69,0.1]
[1772416097626,2.06351816,84.707,84.69,0.1]
[1772416098130,2.06351816,84.707,84.648,3.69383402]
[1772416098131,2.06351816,84.699,84.667,2.24865222]
[1772416098331,2.06351816,84.689,84.651,2.24865222]
[1772416098529,8.72630153,84.69,84.661,2.24865222]
[1772416098839,2.06351816,84.697,84.661,2.24865222]
[1772416099022,2.06351816,84.705,84.671,2.24865222]
[1772416099816,29.50922712,84.72,84.671,2.24865222]
[1772416099817,8.72630153,84.69,84.671,2.24865222]
[1772416100240,2.06351816,84.693,84.671,2.24865222]
[1772416100930,8.72630153,84.7,84.673,2.24865222]
[1772416101515,11.8051966,84.709,84.681,2.24865222]
[1772416101737,11.80448209,84.714,84.683,2.24865222]
[1772416101927,20.53002385,84.72,84.683,2.24865222]
[1772416102535,2.06351816,84.719,84.683,2.24865222]
[1772416102841,11.80295568,84.725,84.691,2.24865222]
[1772416103017,11.80295568,84.725,84.659,2.24865222]
[1772416103018,8.72630153,84.7,84.659,2.24865222]
[1772416103320,8.72630153,84.72,84.661,2.24865222]
[1772416103321,8.72630153,84.69,84.661,2.24865222]
[1772416103938,8.72630153,84.71,84.671,2.24865222]
[1772416104140,8.72630153,84.71,84.681,2.24865222]
[1772416104341,20.53139034,84.71,84.681,2.24865222]
[1772416105322,20.53139034,84.71,84.683,2.24865222]
[1772416106948,8.72630153,84.7,84.659,2.24865222]
[1772416107126,8.72630153,84.68,84.661,2.24865222]
[1772416107329,8.72630153,84.68,84.64,0.1]
[1772416107330,2.06351816,84.679,84.653,2.24865222]
[1772416108722,8.72630153,84.68,84.64,0.1]
[1772416108723,2.06351816,84.659,84.64,0.1]
[1772416108948,2.06351816,84.647,84.612,2.24865222]
[1772416109240,11.8136282,84.648,84.562,172.48712847]
[1772416109241,8.72630153,84.62,84.607,2.25092508]
[1772416109542,8.72630153,84.64,84.607,2.25092508]
[1772416110442,8.72630153,84.63,84.598,2.25092508]
[1772416111146,11.81628047,84.629,84.598,2.25092508]
[1772416111326,5.36086188,84.667,84.584,3.69383402]
[1772416111327,8.72630153,84.65,84.621,2.25092508]
[1772416111533,0.0550394,84.659,84.621,2.25092508]
[1772416112945,8.72630153,84.65,84.621,2.25092508]
[1772416113326,0.0550394,84.659,84.631,2.25092508]
[1772416113524,8.72630153,84.67,84.641,2.24865222]
[1772416114373,8.72630153,84.66,84.632,2.24865222]
[1772416114853,8.72630153,84.67,84.632,2.24865222]
[1772416115035,8.72630153,84.68,84.641,2.24865222]
[1772416115435,8.72630153,84.67,84.643,2.24865222]
[1772416115642,8.72630153,84.68,84.643,2.24865222]
[1772416115841,11.8086875,84.684,84.651,2.24865222]
[1772416116022,8.72630153,84.68,84.651,2.24865222]
[1772416116831,8.72630153,84.69,84.651,2.24865222]
[1772416117030,8.72630153,84.68,84.651,2.24865222]
[1772416117539,8.72630153,84.68,84.652,2.24865222]
[1772416117844,8.72630153,84.68,84.653,2.24865222]
[1772416118227,8.72630153,84.67,84.653,2.24865222]
[1772416118431,0.05244176,84.658,84.612,2.24865222]
[1772416118628,8.72630153,84.68,84.56,8.72630153]
[1772416118629,8.72630153,84.63,84.603,2.24865222]
[1772416119027,8.72630153,84.65,84.621,2.24865222]
[1772416119458,8.72630153,84.64,84.621,2.24865222]
[1772416119660,2.06351816,84.628,84.586,2.24865222]
[1772416119957,8.72630153,84.62,84.586,2.24865222]
[1772416120153,8.72630153,84.61,84.586,2.24865222]
[1772416121264,2.06351816,84.597,84.553,11.82690147]
[1772416121438,8.72630153,84.58,84.554,2.24865222]
[1772416121636,8.72630153,84.59,84.556,2.24865222]
[1772416122138,11.82186809,84.589,84.556,2.24865222]
[1772416122653,8.72630153,84.6,84.561,2.24865222]
[1772416122845,8.72630153,84.59,84.561,2.24865222]
[1772416123150,29.54745477,84.61,84.571,2.24865222]
[1772416123151,8.72630153,84.61,84.571,2.24865222]
[1772416123651,8.72630153,84.61,84.555,41.39317603]
[1772416123652,8.72630153,84.59,84.565,2.24865222]
[1772416124229,8.72630153,84.58,84.565,2.24865222]
[1772416124451,8.72630153,84.6,84.565,2.24865222]
[1772416124663,8.76805519,84.6,84.565,2.24865222]
[1772416124948,8.76805519,84.59,84.565,2.24865222]
[1772416125167,8.76805519,84.59,84.56,2.24865222]
[1772416125448,41.36724659,84.608,84.553,11.82681074]
[1772416125449,8.76805519,84.58,84.553,11.82681074]
[1772416125633,10.83157335,84.58,84.553,11.82681074]
[1772416125834,11.82326582,84.579,84.553,11.82681074]
[1772416126651,2.06351816,84.58,84.553,11.82681074]
[1772416126953,10.83157335,84.58,84.553,14.07546296]
[1772416127652,2.21962,84.579,84.541,2.04374096]
[1772416127851,2.21962,84.569,84.532,2.04374096]
[1772416128447,2.21962,84.569,84.525,11.83081928]
[1772416128753,8.76805519,84.54,84.501,2.24489223]
[1772416128955,8.76805519,84.56,84.521,2.24489223]
[1772416129440,0.28432314,84.577,84.521,2.24489223]
[1772416129441,8.76805519,84.55,84.521,2.24489223]
[1772416129842,8.76805519,84.56,84.521,2.24489223]
[1772416130042,47.20697033,84.734,84.512,11.83263915]
[1772416130043,8.76805519,84.57,84.54,8.76805519]
[1772416130340,11.8235454,84.577,84.541,2.24489223]
[1772416130551,8.76805519,84.57,84.541,2.24489223]
[1772416130877,0.28432314,84.576,84.541,2.24489223]
[1772416131043,11.8235454,84.577,84.541,2.24489223]
[1772416131240,11.8235454,84.577,84.551,2.24489223]
[1772416131453,11.82278865,84.583,84.551,2.24489223]
[1772416131860,29.55536902,84.587,84.551,14.07202267]
[1772416132058,29.55536902,84.587,84.552,2.24489223]
[1772416132444,8.76805519,84.58,84.552,2.24489223]
[1772416132739,8.76805519,84.57,84.539,2.24489223]
[1772416132962,8.76805519,84.58,84.539,2.24489223]
[1772416133140,0.28432314,84.579,84.54,8.76805519]
[1772416133341,0.28432314,84.579,84.52,8.76805519]
[1772416133342,8.76805519,84.56,84.52,11.01294742]
[1772416133561,8.76805519,84.56,84.48,8.76805519]
[1772416133562,8.76805519,84.54,84.505,11.83354549]
[1772416134060,11.82886005,84.539,84.505,11.83354549]
[1772416134457,0.28432314,84.538,84.501,2.24489223]
[1772416134658,11.82886005,84.539,84.51,8.76805519]
[1772416134845,11.82746099,84.549,84.511,2.24489223]
[1772416135244,41.39611348,84.549,84.52,8.76805519]
[1772416135440,11.82746099,84.549,84.52,8.76805519]
[1772416135853,11.82746099,84.549,84.521,2.24489223]
[1772416136051,11.82466388,84.569,84.54,8.76805519]
[1772416136250,41.38632358,84.569,84.54,8.76805519]
[1772416136668,8.76805519,84.56,84.528,2.24489223]
[1772416136852,0.28432314,84.568,84.531,2.24489223]
[1772416137365,11.82466388,84.569,84.54,8.76805519]
[1772416137569,11.82466388,84.569,84.531,2.24489223]
[1772416137946,11.82466388,84.569,84.529,11.83025943]
[1772416137947,11.82326582,84.579,84.543,2.24489223]
[1772416138351,11.82326582,84.579,84.55,8.76805519]
[1772416138664,11.82254352,84.585,84.551,2.24489223]
[1772416138968,11.82254352,84.585,84.561,2.24489223]
[1772416139664,11.82254352,84.585,84.551,2.24489223]
[1772416140064,11.82186809,84.589,84.551,2.24489223]
[1772416140580,8.76805519,84.57,84.532,2.24489223]
[1772416140753,8.76805519,84.54,84.511,2.24489223]
[1772416140944,8.76805519,84.55,84.511,2.24489223]
[1772416142049,8.76805519,84.56,84.521,2.24489223]
[1772416142250,11.82606227,84.559,84.521,2.24489223]
[1772416142461,8.76805519,84.55,84.511,2.24489223]
[1772416142663,11.82606227,84.559,84.51,8.76805519]
[1772416142664,41.39121796,84.559,84.521,2.24489223]
[1772416143664,0.28432314,84.558,84.521,2.24489223]
[1772416143867,8.76805519,84.55,84.51,20.60092913]
[1772416144385,11.82746099,84.549,84.511,2.24489223]
[1772416144758,41.39611348,84.549,84.511,2.24489223]
[1772416144965,8.76805519,84.54,84.487,2.24489223]
[1772416145164,8.76805519,84.51,84.469,2.24489223]
[1772416145466,8.76805519,84.51,84.48,8.76805519]
[1772416145663,45.0899475,84.549,84.461,11.83978404]
[1772416145867,0.28432314,84.509,84.46,0.1]
[1772416146192,8.76805519,84.52,84.46,0.1]
[1772416146193,8.76805519,84.48,84.46,0.1]
[1772416146479,11.53439287,84.479,84.46,0.1]
[1772416146677,11.83647192,84.485,84.46,8.86805519]
[1772416147062,11.83647192,84.485,84.439,29.60702422]
[1772416147063,8.76805519,84.47,84.433,2.24489223]
[1772416147252,11.83647192,84.485,84.45,8.76805519]
[1772416147452,11.83647192,84.485,84.461,2.24489223]
[1772416148257,11.83482396,84.497,84.463,2.24489223]
[1772416148456,11.8330592,84.509,84.481,2.24489223]
[1772416149467,8.76805519,84.5,84.47,8.76805519]
[1772416149663,8.76805519,84.5,84.469,2.24489223]
[1772416150274,11.83586028,84.489,84.459,2.24489223]
[1772416150587,11.83508523,84.495,84.461,2.24489223]
[1772416152372,8.76805519,84.52,84.481,2.24489223]
[1772416152973,41.40639787,84.528,84.491,2.24489223]
[1772416153271,8.76805519,84.53,84.501,2.24489223]
[1772416153881,11.82899997,84.538,84.501,2.24489223]
[1772416154075,11.82899997,84.538,84.48,8.76805519]
[1772416154076,8.76805519,84.55,84.521,2.24489223]
[1772416154284,11.82634199,84.557,84.521,2.24489223]
[1772416154870,11.82634199,84.557,84.523,2.24489223]
[1772416155069,8.76805519,84.55,84.51,8.76805519]
[1772416155379,41.39219697,84.557,84.521,2.24489223]
[1772416155577,8.76805519,84.55,84.521,2.24489223]
[1772416155882,8.76805519,84.53,84.491,2.24489223]
[1772416156262,8.76805519,84.54,84.501,2.24489223]
[1772416156463,11.82886005,84.539,84.501,2.24489223]
[1772416156781,8.76805519,84.51,84.476,2.24489223]
[1772416157680,8.76805519,84.52,84.481,2.24489223]
[1772416158674,41.41080703,84.519,84.481,2.24489223]
[1772416158984,8.76805519,84.51,84.481,2.24489223]
[1772416160393,41.41080703,84.519,84.483,2.24489223]
[1772416160779,41.41080703,84.519,84.441,3.69383402]
[1772416160780,8.76805519,84.51,84.462,2.24489223]
[1772416160981,59.14430026,84.539,84.464,2.24489223]
[1772416160982,8.76805519,84.5,84.464,2.24489223]
[1772416161178,8.76805519,84.5,84.463,11.83950368]
[1772416161179,8.76805519,84.51,84.471,2.24489223]
[1772416161378,59.14430026,84.539,84.481,2.24489223]
[1772416161379,8.76805519,84.52,84.481,2.24489223]
[1772416161684,8.76805519,84.51,84.471,2.24489223]
[1772416162084,8.76805519,84.52,84.481,2.24489223]
[1772416162291,0.28432314,84.519,84.481,2.24489223]
[1772416162494,8.76805519,84.51,84.481,2.24489223]
[1772416163183,0.28432314,84.499,84.452,2.24489223]
[1772416163390,8.76805519,84.49,84.453,2.24489223]
[1772416164177,8.76805519,84.5,84.461,2.24489223]
[1772416165090,100.5810032,84.509,84.452,11.84094122]
[1772416165091,0.28432314,84.508,84.471,2.24489223]
[1772416165392,8.76805519,84.5,84.471,2.24489223]
[1772416165573,0.28432314,84.506,84.471,2.24489223]
[1772416165973,41.41668737,84.507,84.471,2.24489223]
[1772416166176,8.76805519,84.5,84.471,2.24489223]
[1772416167394,41.42060851,84.499,84.471,2.24489223]
[1772416167994,41.4073776,84.526,84.481,2.24489223]
[1772416168181,41.4073776,84.526,84.491,2.24489223]
[1772416168383,11.83067931,84.526,84.491,2.24489223]
[1772416168576,11.83011679,84.531,84.511,2.24489223]
[1772416168774,11.82746099,84.549,84.521,2.24489223]
[1772416168974,41.39611348,84.549,84.521,2.24489223]
[1772416171382,8.76805519,84.53,84.49,8.76805519]
[1772416171578,2.10757016,84.529,84.465,3.69383402]
[1772416171771,2.10757016,84.529,84.49,8.76805519]
[1772416173587,11.83039939,84.528,84.491,2.04968364]
[1772416173899,41.40639787,84.528,84.492,13.88512368]
[1772416174099,43.51396803,84.528,84.492,13.88512368]
[1772416174297,43.51396803,84.528,84.493,2.04968364]
[1772416174499,2.10757016,84.527,84.493,2.04968364]
[1772416175195,8.76805519,84.51,84.484,2.04968364]
[1772416175599,11.8330592,84.509,84.484,2.04968364]
[1772416175901,11.8330592,84.509,84.444,59.21076006]
[1772416175902,8.76805519,84.54,84.501,2.04968364]
[1772416176198,8.76805519,84.54,84.51,8.76805519]
[1772416176408,2.10757016,84.539,84.501,2.04968364]
[1772416176698,2.10757016,84.519,84.481,2.04968364]
[1772416176880,8.76805519,84.51,84.481,2.04968364]
[1772416177394,10.87562535,84.51,84.481,2.04968364]
[1772416177593,11.8330592,84.509,84.481,2.04968364]
[1772416177776,11.83137918,84.521,84.481,2.04968364]
[1772416177980,47.22494851,84.701,84.51,8.76805519]
[1772416177981,8.76805519,84.54,84.51,8.76805519]
[1772416178597,11.82760972,84.548,84.521,2.04968364]
[1772416178782,2.10757016,84.574,84.541,2.04968364]
[1772416179184,8.76805519,84.57,84.541,2.04968364]
[1772416179798,41.38632358,84.569,84.541,2.04968364]
[1772416180206,8.76805519,84.55,84.501,2.21883517]
[1772416180500,8.76805519,84.53,84.501,2.21883517]
[1772416180896,8.76805519,84.54,84.501,2.21883517]
[1772416181204,8.76805519,84.55,84.511,2.21883517]
[1772416181588,8.76805519,84.55,84.52,8.76805519]
[1772416181794,8.76805519,84.55,84.521,2.21883517]
[1772416182109,100.50964299,84.569,84.523,2.21883517]
[1772416182110,11.82620213,84.558,84.523,2.21883517]
[1772416182484,41.39170746,84.558,84.523,2.21883517]
[1772416183184,41.39170746,84.558,84.531,2.21883517]
[1772416183381,11.82620213,84.558,84.531,2.21883517]
[1772416183588,8.76805519,84.58,84.541,2.21883517]
[1772416183791,8.76805519,84.58,84.55,10.98689036]
[1772416183991,41.38158525,84.579,84.55,2.21883517]
[1772416185804,41.38158525,84.579,84.541,2.21883517]
[1772416188505,11.82326582,84.579,84.551,2.21883517]
[1772416189005,29.55476971,84.589,84.551,2.21883517]
[1772416189006,11.82200784,84.588,84.551,2.21883517]
[1772416189307,11.82200784,84.588,84.56,8.77330941]
[1772416189508,11.82200784,84.588,84.561,2.21883517]
[1772416190311,11.82047069,84.599,84.571,2.21883517]
[1772416191001,11.82047069,84.599,84.563,2.21883517]
[1772416191403,41.37164741,84.599,84.563,2.21883517]
[1772416191905,8.77330941,84.59,84.554,2.21883517]
[1772416192212,8.77330941,84.57,84.515,2.21883517]
[1772416192396,8.77330941,84.57,84.541,2.21883517]
[1772416194312,11.82466388,84.569,84.541,2.21883517]
[1772416194697,41.38632358,84.569,84.541,2.21883517]
[1772416194894,11.82466388,84.569,84.541,2.21883517]
[1772416195093,8.77330941,84.56,84.524,2.21883517]
[1772416195306,8.77330941,84.56,84.526,2.21883517]
[1772416195509,8.77330941,84.56,84.531,2.21883517]
[1772416196411,11.82606227,84.559,84.531,2.21883517]
[1772416197525,11.82606227,84.559,84.521,2.21883517]